bitfinex/quotes_BTCUSD_20241120
["timestamp","ask_amount","ask_price","bid_price","bid_amount"]
[1732111292165,0.0095,94370.0,94369.0,0.23555418]
[1732111292405,0.11661512,94370.0,94369.0,0.23555418]
[1732111292893,0.65451512,94370.0,94369.0,0.23555418]
[1732111293353,0.60951512,94370.0,94369.0,0.23555418]
[1732111293573,0.71748012,94370.0,94369.0,0.23555418]
[1732111293782,0.105984,94353.0,94352.0,0.001713]
[1732111294001,0.86589912,94353.0,94352.0,0.001713]
[1732111294216,0.86589912,94353.0,94324.0,0.042406]
[1732111294217,0.002,94342.0,94324.0,0.042406]
[1732111294433,0.106003,94337.0,94328.0,0.042404]
[1732111294644,0.10711512,94336.0,94324.0,0.04355618]
[1732111294859,0.10711512,94336.0,94325.0,0.042406]
[1732111295072,0.10711512,94336.0,94305.0,0.0017122]
[1732111295073,0.108008,94332.0,94318.0,0.042409]
[1732111295290,0.28932312,94332.0,94318.0,0.042409]
[1732111295492,0.28932312,94332.0,94315.0,0.04241]
[1732111295493,0.29132312,94332.0,94319.0,0.042409]
[1732111295758,0.29132312,94332.0,94320.0,0.042408]
[1732111295759,0.28932312,94332.0,94320.0,0.042408]
[1732111295972,0.28932312,94332.0,94315.0,0.04241]
[1732111295973,0.29132312,94332.0,94315.0,0.04241]
[1732111296173,0.29132312,94332.0,94313.0,0.042411]
[1732111296386,0.002,94329.0,94315.0,0.04241]
[1732111296613,0.10711512,94328.0,94316.0,0.04241]
[1732111296821,0.10711512,94328.0,94309.0,0.042413]
[1732111297025,0.212029,94327.0,94317.0,0.042409]
[1732111297228,0.10711512,94326.0,94318.0,0.042409]
[1732111297438,0.106019,94322.0,94305.0,0.04498287]
[1732111297649,0.64501512,94322.0,94311.0,0.1]
[1732111297877,0.75103412,94322.0,94310.0,0.042413]
[1732111298085,0.75103412,94322.0,94305.0,0.0017122]
[1732111298086,0.75303412,94322.0,94305.0,0.0017122]
[1732111298500,0.106037,94306.0,94305.0,0.0017122]
[1732111298702,0.10711512,94306.0,94305.0,0.0017122]
[1732111298908,0.10711512,94306.0,94305.0,0.0441272]
[1732111299113,0.10711512,94306.0,94305.0,0.0017122]
[1732111299781,0.21315212,94306.0,94305.0,0.0017122]
[1732111299991,0.2563196,94306.0,94305.0,0.0017122]
[1732111300223,0.2260826,94306.0,94305.0,0.0017122]
[1732111300467,0.8700196,94306.0,94305.0,0.0017122]
[1732111301174,0.8700196,94306.0,94305.0,0.00127836]
[1732111301602,0.8720196,94306.0,94305.0,0.00127836]
[1732111301814,0.8950196,94306.0,94305.0,0.00127836]
[1732111302024,0.8700196,94306.0,94305.0,0.00127836]
[1732111302242,0.6881826,94306.0,94305.0,0.00127836]
[1732111302466,0.1502826,94306.0,94305.0,0.00127836]
[1732111302887,0.2563196,94306.0,94305.0,0.00127836]
[1732111303134,0.002,94301.0,94269.0,0.0593]
[1732111303388,0.64501512,94300.0,94291.0,0.042421]
[1732111303597,0.85710512,94300.0,94280.0,0.0017126]
[1732111303815,0.85710512,94300.0,94294.0,0.04242]
[1732111303816,0.64501512,94300.0,94294.0,0.04242]
[1732111304038,0.64501512,94300.0,94281.0,0.042426]
[1732111304250,0.64501512,94300.0,94280.0,0.0017126]
[1732111304461,0.64501512,94300.0,94299.0,0.042418]
[1732111304671,0.64501512,94300.0,94295.0,0.042419]
[1732111304672,0.64501512,94300.0,94297.0,0.042418]
[1732111304885,0.64501512,94300.0,94298.0,0.042418]
[1732111305305,0.64501512,94300.0,94295.0,0.042419]
[1732111305518,0.64501512,94300.0,94297.0,0.042419]
[1732111305975,0.64501512,94300.0,94299.0,0.042418]
[1732111307693,0.64501512,94300.0,94298.0,0.042418]
[1732111307941,0.1319,94281.0,94268.0,0.001713]
[1732111308156,0.033,94270.0,94268.0,0.001713]
[1732111308375,0.02,94259.0,94258.0,0.042436]
[1732111308605,0.5579,94259.0,94258.0,0.042436]
[1732111309510,0.5579,94259.0,94258.0,0.04200216]
[1732111309940,0.5479,94259.0,94258.0,0.04200216]
[1732111310144,0.01,94258.0,94231.0,0.042448]
[1732111310361,0.5479,94259.0,94249.0,0.04244]
[1732111310362,0.01,94250.0,94249.0,0.04244]
[1732111310587,0.01,94250.0,94249.0,0.04199361]
[1732111312367,0.01,94252.0,94249.0,0.04199361]
[1732111312368,0.01,94251.0,94250.0,0.04244]
[1732111312621,0.5479,94251.0,94250.0,0.04244]
[1732111313042,0.01,94250.0,94249.0,0.04199361]
[1732111314300,0.01,94243.0,94239.0,0.1]
[1732111314508,0.01,94243.0,94242.0,0.042443]
[1732111314751,0.01,94244.0,94243.0,0.042443]
[1732111314968,0.01,94250.0,94249.0,0.04244]
[1732111316506,0.01,94243.0,94242.0,0.042443]
[1732111316713,0.01,94241.0,94240.0,0.042444]
[1732111318414,0.01,94226.0,94211.0,0.042457]
[1732111318696,0.01,94226.0,94225.0,0.042451]
[1732111318926,0.01,94233.0,94232.0,0.042448]
[1732111318927,0.02,94233.0,94232.0,0.042448]
[1732111319159,0.66701512,94233.0,94230.0,0.042449]
[1732111319394,0.01,94219.0,94218.0,0.04223708]
[1732111319624,0.01,94219.0,94218.0,0.04202016]
[1732111319855,0.01,94226.0,94210.0,0.04496474]
[1732111319856,0.02,94226.0,94225.0,0.042451]
[1732111320312,0.02,94232.0,94231.0,0.042448]
[1732111320526,0.5399,94233.0,94232.0,0.042448]
[1732111321616,0.01,94244.0,94243.0,0.042443]
[1732111321846,0.01,94244.0,94243.0,0.084886]
[1732111322060,0.5599,94250.0,94249.0,0.04244]
[1732111322278,0.5499,94250.0,94249.0,0.04244]
[1732111322499,0.5599,94250.0,94249.0,0.04244]
[1732111322722,0.5399,94250.0,94249.0,0.04244]
[1732111322938,0.5399,94260.0,94259.0,0.042436]
[1732111323182,0.01,94265.0,94264.0,0.042434]
[1732111323393,0.5149,94269.0,94268.0,0.042432]
[1732111323818,0.5049,94269.0,94268.0,0.042432]
[1732111324243,0.5149,94269.0,94268.0,0.042432]
[1732111324487,0.5149,94269.0,94268.0,5.798e-05]
[1732111324712,0.84949412,94269.0,94268.0,5.798e-05]
[1732111324935,0.85149412,94269.0,94268.0,5.798e-05]
[1732111325207,0.86149412,94269.0,94268.0,5.798e-05]
[1732111325457,0.86149412,94269.0,94171.0,0.28107461]
[1732111325458,0.01,94236.0,94226.0,0.042451]
[1732111325672,0.01,94226.0,94225.0,0.0441648]
[1732111326099,0.5049,94234.0,94225.0,0.0017138]
[1732111326312,0.5149,94234.0,94233.0,0.042447]
[1732111327373,0.5049,94234.0,94233.0,0.042447]
[1732111328016,0.5049,94234.0,94225.0,0.0017138]
[1732111328229,0.01,94226.0,94225.0,0.0441648]
[1732111329294,0.01,94226.0,94225.0,0.0017138]
[1732111329519,0.11711512,94226.0,94225.0,0.00149688]
[1732111329742,0.3048031,94226.0,94225.0,0.00149688]
[1732111329958,0.30374212,94226.0,94225.0,0.00149688]
[1732111330849,0.19761512,94226.0,94225.0,0.00149688]
[1732111331065,0.30374212,94226.0,94225.0,0.00149688]
[1732111331547,0.30374212,94226.0,94210.0,0.0017138]
[1732111331548,0.116144,94211.0,94210.0,0.0017138]
[1732111331764,0.72815912,94211.0,94210.0,0.0017138]
[1732111332000,0.75115912,94211.0,94210.0,0.0017138]
[1732111332631,0.75115912,94211.0,94210.0,0.00149688]
[1732111332858,0.83865912,94211.0,94210.0,0.00149688]
[1732111333038,0.83665912,94211.0,94210.0,0.00149688]
[1732111333277,0.80365912,94211.0,94210.0,0.00149688]
[1732111333701,0.83665912,94211.0,94210.0,0.00149688]
[1732111334339,0.87901812,94211.0,94210.0,0.00149688]
[1732111334546,0.86901812,94211.0,94210.0,0.00149688]
[1732111334761,0.84601812,94211.0,94210.0,0.00149688]
[1732111335827,0.86901812,94211.0,94210.0,0.00149688]
[1732111336239,0.92151785,94211.0,94210.0,0.00149688]
[1732111336660,0.87901812,94211.0,94210.0,0.00149688]
[1732111337074,0.92581812,94211.0,94210.0,0.00149688]
[1732111337694,0.01,94205.0,94180.0,0.114015]
[1732111337910,0.2243271,94205.0,94181.0,0.042471]
[1732111338134,0.11711512,94205.0,94186.0,0.042469]
[1732111338347,0.1793271,94205.0,94180.0,0.114015]
[1732111338586,0.1813271,94205.0,94180.0,0.014015]
[1732111339254,0.10616,94197.0,94180.0,0.014015]
[1732111339463,0.2940361,94197.0,94180.0,0.014015]
[1732111339671,0.29297512,94197.0,94180.0,0.014015]
[1732111339887,0.29297512,94197.0,94180.0,0.056486]
[1732111339888,0.18681512,94197.0,94180.0,0.056486]
[1732111340380,0.3170361,94197.0,94180.0,0.014015]
[1732111340607,0.31597512,94197.0,94180.0,0.014015]
[1732111340838,0.83287512,94197.0,94180.0,0.014015]
[1732111341049,0.5399,94197.0,94193.0,0.042465]
[1732111341265,0.5399,94197.0,94196.0,0.0441778]
[1732111341697,0.0758,94220.0,94196.0,0.0441778]
[1732111341698,0.5399,94219.0,94196.0,0.0017138]
[1732111341916,0.1081761,94218.0,94213.0,0.042456]
[1732111342122,0.1081761,94218.0,94208.0,0.042458]
[1732111342300,0.1081761,94218.0,94210.0,0.042458]
[1732111342749,0.1081761,94218.0,94198.0,0.1]
[1732111342750,0.1081761,94218.0,94203.0,0.042461]
[1732111342953,0.1081761,94218.0,94204.0,0.042461]
[1732111343201,0.1081761,94218.0,94208.0,0.042458]
[1732111343660,0.1081761,94218.0,94211.0,0.042457]
[1732111343882,0.1081761,94218.0,94213.0,0.042456]
[1732111344318,0.1081761,94218.0,94212.0,0.053071]
[1732111344521,0.1081761,94218.0,94210.0,0.053072]
[1732111344728,0.1081761,94218.0,94189.0,0.1]
[1732111344945,0.1081761,94218.0,94213.0,0.05307]
[1732111345154,0.5399,94217.0,94213.0,0.05307]
[1732111345395,0.5399,94218.0,94215.0,0.05307]
[1732111345613,0.0474,94244.0,94215.0,0.05307]
[1732111345614,0.5399,94228.0,94227.0,0.053063]
[1732111346059,0.5399,94228.0,94225.0,0.053064]
[1732111346060,0.64701512,94228.0,94207.0,0.1]
[1732111346266,0.64701512,94228.0,94203.0,0.053076]
[1732111346267,0.00106098,94227.0,94226.0,0.053063]
[1732111346490,0.5399,94228.0,94227.0,0.053063]
[1732111346709,0.5399,94228.0,94224.0,0.053064]
[1732111346710,0.0758,94240.0,94228.0,0.053062]
[1732111346916,0.0758,94240.0,94224.0,0.053064]
[1732111346917,0.6480761,94239.0,94224.0,0.053064]
[1732111347138,0.64701512,94239.0,94219.0,0.053067]
[1732111347349,0.00106098,94238.0,94217.0,0.053068]
[1732111347561,0.10711512,94237.0,94217.0,0.053068]
[1732111347773,0.00106098,94236.0,94217.0,0.053068]
[1732111348011,0.10711512,94235.0,94222.0,0.10613]
[1732111348239,0.00106098,94234.0,94222.0,0.053066]
[1732111348456,0.10711512,94233.0,94217.0,0.053068]
[1732111348667,0.10711512,94233.0,94207.0,0.1]
[1732111348668,0.00106098,94232.0,94215.0,0.053069]
[1732111348874,0.10711512,94231.0,94207.0,0.1]
[1732111349085,0.0008584,94218.0,94215.0,0.053069]
[1732111349305,0.10711512,94217.0,94214.0,0.05307]
[1732111349724,0.10711512,94217.0,94204.0,0.0017168]
[1732111349725,0.00106098,94216.0,94206.0,0.053075]
[1732111349951,0.00106098,94216.0,94185.0,0.045]
[1732111349952,0.01,94204.0,94203.0,0.053076]
[1732111350169,0.5499,94204.0,94197.0,0.053079]
[1732111350385,0.5499,94204.0,94166.0,0.053097]
[1732111350627,0.04226353,94216.0,94168.0,0.053096]
[1732111350628,0.01,94193.0,94168.0,0.053096]
[1732111350844,0.01,94183.0,94162.0,0.053099]
[1732111351058,0.01,94183.0,94157.0,0.01105642]
[1732111351059,0.01,94176.0,94157.0,0.01105642]
[1732111351269,0.6480761,94182.0,94153.0,0.0017138]
[1732111351270,0.01,94174.0,94155.0,0.053103]
[1732111351521,0.01,94174.0,94161.0,0.04362623]
[1732111351730,0.01,94174.0,94161.0,7e-05]
[1732111351944,0.01,94174.0,94168.0,0.053096]
[1732111352203,0.01,94168.0,94161.0,7e-05]
[1732111352414,0.01,94166.0,94161.0,7e-05]
[1732111352621,0.01,94168.0,94161.0,7e-05]
[1732111352622,0.01,94164.0,94161.0,7e-05]
[1732111352858,0.02,94162.0,94161.0,7e-05]
[1732111353101,0.66701512,94162.0,94161.0,7e-05]
[1732111353303,0.01,94170.0,94167.0,0.053096]
[1732111353554,0.0488,94190.0,94167.0,0.053096]
[1732111353555,0.4949,94189.0,94185.0,0.053087]
[1732111353824,0.5049,94192.0,94188.0,0.053085]
[1732111354059,0.01,94189.0,94188.0,0.053085]
[1732111354314,0.4949,94192.0,94191.0,0.0637]
[1732111354551,0.4949,94198.0,94197.0,0.063696]
[1732111354805,0.01,94208.0,94207.0,0.063689]
[1732111355046,0.01,94204.0,94189.0,0.063701]
[1732111355290,0.01,94204.0,94203.0,0.063692]
[1732111355820,0.01,94204.0,94203.0,0.06868594]
[1732111356570,0.01,94204.0,94200.0,0.063693]
[1732111356818,0.01,94204.0,94203.0,0.06868594]
[1732111357068,0.01,94204.0,94198.0,0.063695]
[1732111357069,0.02,94204.0,94198.0,0.063695]
[1732111357313,0.00106098,94203.0,94199.0,0.063694]
[1732111357561,0.00106098,94203.0,94199.0,0.00497249]
[1732111358059,0.02,94200.0,94199.0,0.00497249]
[1732111358308,0.3848331,94200.0,94199.0,0.00497249]
[1732111358533,0.01,94176.0,94175.0,0.063711]
[1732111358773,0.01,94176.0,94175.0,0.127422]
[1732111359004,0.01,94176.0,94175.0,0.06868807]
[1732111360201,0.4949,94182.0,94175.0,0.00497707]
[1732111360438,0.4949,94182.0,94181.0,0.063707]
[1732111360919,0.4949,94182.0,94181.0,0.08846811]
[1732111361651,0.4949,94182.0,94178.0,0.1]
[1732111361652,0.4949,94182.0,94179.0,0.063708]
[1732111361883,0.5049,94200.0,94178.0,0.08746811]
[1732111362122,0.01,94209.0,94201.0,0.063693]
[1732111362394,0.00106098,94212.0,94209.0,0.063688]
[1732111362621,0.5499,94213.0,94212.0,0.063686]
[1732111363092,0.5399,94216.0,94215.0,0.063684]
[1732111363790,0.0008584,94218.0,94216.0,0.063683]
[1732111364754,0.0008584,94218.0,94216.0,0.16474422]
[1732111365454,0.0008584,94218.0,94216.0,0.27185934]
[1732111365672,0.0008584,94218.0,94216.0,0.27079812]
[1732111366827,0.0008584,94218.0,94216.0,0.163683]
[1732111368301,0.0008584,94218.0,94216.0,0.162683]
[1732111368555,0.55138672,94245.0,94244.0,0.063664]
[1732111368811,0.5399,94250.0,94249.0,0.063661]
[1732111370236,0.5399,94250.0,94249.0,0.06284293]
[1732111370682,0.5399,94250.0,94246.0,0.063662]
[1732111370928,0.5399,94250.0,94248.0,0.063661]
[1732111371183,0.5399,94250.0,94249.0,0.063661]
[1732111372536,0.5399,94276.0,94256.0,0.063656]
[1732111372756,0.03400373,94277.0,94276.0,0.063642]
[1732111373232,0.5399,94285.0,94257.0,0.20711512]
[1732111373459,0.10711512,94277.0,94246.0,0.063663]
[1732111373670,0.23201512,94276.0,94252.0,0.063658]
[1732111373876,0.10609,94260.0,94250.0,0.063659]
[1732111374103,0.23201512,94276.0,94239.0,0.1]
[1732111374104,0.5399,94259.0,94252.0,0.063658]
[1732111374590,0.5399,94259.0,94240.0,0.063667]
[1732111374812,0.5399,94259.0,94253.0,0.063657]
[1732111375024,0.5399,94259.0,94243.0,0.002]
[1732111375252,0.5399,94259.0,94258.0,0.063655]
[1732111377379,0.5399,94259.0,94258.0,0.09802029]
[1732111377595,0.6228,94289.0,94281.0,0.063639]
[1732111377801,0.6228,94289.0,94283.0,0.063637]
[1732111377802,0.03445482,94284.0,94283.0,0.063637]
[1732111378016,0.0829,94289.0,94273.0,0.063644]
[1732111378230,0.0829,94289.0,94282.0,0.063638]
[1732111378443,0.0829,94289.0,94283.0,0.063638]
[1732111378677,0.0829,94289.0,94277.0,0.063642]
[1732111378879,0.0829,94289.0,94263.0,0.065651]
[1732111379080,0.0829,94289.0,94259.0,0.20711512]
[1732111379299,0.106061,94285.0,94275.0,0.063643]
[1732111379505,0.752016,94288.0,94274.0,0.063644]
[1732111379720,0.752016,94288.0,94276.0,0.063642]
[1732111379721,0.106059,94287.0,94276.0,0.063642]
[1732111379924,0.5399,94288.0,94259.0,0.20711512]
[1732111380137,0.5399,94288.0,94277.0,0.063641]
[1732111380348,0.5399,94288.0,94262.0,0.102]
[1732111380578,0.5399,94288.0,94277.0,0.063641]
[1732111380790,0.5399,94288.0,94266.0,0.063649]
[1732111380791,0.106059,94287.0,94278.0,0.063641]
[1732111380994,0.5399,94286.0,94263.0,0.002]
[1732111381202,0.5399,94286.0,94265.0,0.06365]
[1732111381414,0.5399,94286.0,94274.0,0.063644]
[1732111381622,0.5399,94286.0,94277.0,0.063642]
[1732111381840,0.5399,94286.0,94276.0,0.063642]
[1732111382287,0.5399,94286.0,94263.0,0.002]
[1732111382288,0.5399,94286.0,94264.0,0.190953]
[1732111382479,0.5399,94286.0,94280.0,0.063639]
[1732111382700,0.5399,94286.0,94281.0,0.063639]
[1732111382909,0.5399,94286.0,94269.0,0.063647]
[1732111383121,0.212126,94284.0,94262.0,0.20711512]
[1732111383333,0.27424212,94283.0,94268.0,0.063648]
[1732111383560,0.212131,94281.0,94270.0,0.063646]
[1732111383776,0.106069,94279.0,94270.0,0.063646]
[1732111384207,0.10711512,94283.0,94263.0,0.002]
[1732111384462,0.31924312,94283.0,94269.0,0.063647]
[1732111384685,0.0766,94267.0,94248.0,0.063661]
[1732111384896,0.64701512,94266.0,94245.0,0.03523027]
[1732111385102,0.64701512,94266.0,94234.0,0.01]
[1732111385103,0.106084,94265.0,94242.0,0.00054724]
[1732111385311,0.64701512,94266.0,94258.0,0.063655]
[1732111385524,0.64701512,94266.0,94259.0,0.063654]
[1732111385737,0.64701512,94266.0,94257.0,0.063655]
[1732111385943,0.64701512,94266.0,94259.0,0.063654]
[1732111386183,0.64701512,94266.0,94257.0,0.063655]
[1732111386184,0.64701512,94266.0,94261.0,0.063652]
[1732111386446,0.64701512,94266.0,94260.0,0.063653]
[1732111386687,0.64701512,94266.0,94262.0,0.01962213]
[1732111386899,0.106085,94264.0,94262.0,0.01962213]
[1732111387118,0.64701512,94266.0,94263.0,0.01962213]
[1732111387337,0.0766,94267.0,94264.0,0.01962213]
[1732111387555,0.00145276,94264.0,94250.0,0.01962213]
[1732111387758,0.00145276,94264.0,94249.0,0.001716]
[1732111387759,0.00145276,94261.0,94249.0,0.001716]
[1732111387969,0.00145276,94261.0,94250.0,0.01962163]
[1732111387970,0.183099,94251.0,94250.0,0.01962163]
[1732111388184,0.33961412,94251.0,94250.0,0.01962163]
[1732111388405,0.33961412,94251.0,94201.0,0.06424024]
[1732111388406,0.077,94230.0,94201.0,0.06424024]
[1732111388610,0.077,94230.0,94217.0,0.063682]
[1732111388611,0.106128,94226.0,94217.0,0.063682]
[1732111388822,0.752148,94229.0,94219.0,0.063681]
[1732111388823,0.5399,94229.0,94219.0,0.063681]
[1732111389084,0.106128,94226.0,94218.0,0.063681]
[1732111389290,0.106128,94226.0,94202.0,0.00054724]
[1732111389291,0.106135,94219.0,94202.0,0.063692]
[1732111389530,0.318417,94216.0,94202.0,0.063692]
[1732111389759,0.64701512,94215.0,94180.0,0.00054724]
[1732111389994,0.106151,94206.0,94198.0,0.063695]
[1732111390220,0.106155,94202.0,94170.0,0.01]
[1732111390445,0.0784,94204.0,94170.0,0.00054724]
[1732111390666,0.10711512,94203.0,94169.0,0.01]
[1732111390884,0.212323,94196.0,94179.0,0.063708]
[1732111391098,0.5399,94195.0,94194.0,0.063698]
[1732111391324,0.5399,94195.0,94193.0,0.063698]
[1732111391536,0.5399,94195.0,94194.0,0.063698]
[1732111391968,0.5399,94202.0,94194.0,0.063698]
[1732111392210,0.5399,94202.0,94197.0,0.063695]
[1732111392211,0.10711512,94201.0,94197.0,0.063695]
[1732111392435,0.10711512,94201.0,94196.0,0.063696]
[1732111392696,0.5399,94200.0,94179.0,0.063708]
[1732111392903,0.10711512,94199.0,94197.0,0.063696]
[1732111393114,0.10711512,94199.0,94198.0,0.063695]
[1732111393322,0.5399,94199.0,94198.0,0.063695]
[1732111395316,0.5399,94199.0,94198.0,0.06424224]
[1732111395538,0.5399,94199.0,94198.0,0.063695]
[1732111396185,0.5399,94199.0,94197.0,0.063696]
[1732111396391,0.5399,94199.0,94198.0,0.063695]
[1732111397058,0.5399,94199.0,94181.0,0.00054724]
[1732111397059,0.5399,94205.0,94182.0,0.00054724]
[1732111397272,0.64701512,94206.0,94200.0,0.063693]
[1732111397482,0.75316612,94206.0,94200.0,0.063693]
[1732111397689,0.646052,94205.0,94198.0,0.063694]
[1732111398147,0.646052,94205.0,94187.0,0.1]
[1732111398148,0.106171,94188.0,94180.0,0.063707]
[1732111398357,0.5399,94202.0,94196.0,0.063696]
[1732111398598,0.5399,94202.0,94193.0,0.063698]
[1732111399082,0.5399,94202.0,94197.0,0.063696]
[1732111399360,0.106156,94201.0,94193.0,0.063698]
[1732111399555,0.106156,94201.0,94181.0,0.00054724]
[1732111399556,0.5399,94200.0,94199.0,0.063694]
[1732111399992,0.5399,94200.0,94198.0,0.001716]
[1732111400212,0.646058,94200.0,94198.0,0.001716]
[1732111400449,0.5399,94200.0,94199.0,0.01964045]
[1732111400891,0.5399,94200.0,94199.0,0.08333445]
[1732111401295,0.57507192,94201.0,94200.0,0.063694]
[1732111401503,0.57507192,94201.0,94200.0,0.08333445]
[1732111401504,0.03517192,94201.0,94200.0,0.08333445]
[1732111401755,0.0802,94203.0,94201.0,0.063693]
[1732111401975,0.0802,94203.0,94198.0,0.065411]
[1732111401976,0.18514,94216.0,94210.0,0.063687]
[1732111402194,0.18611512,94216.0,94211.0,0.01962551]
[1732111402422,0.21228,94215.0,94211.0,0.01962551]
[1732111402652,0.10711512,94214.0,94198.0,0.03631608]
[1732111402860,0.212287,94212.0,94198.0,0.03631608]
[1732111403111,0.212305,94205.0,94199.0,0.01963316]
[1732111403329,0.10711512,94211.0,94198.0,0.001716]
[1732111403330,0.212291,94210.0,94198.0,0.001716]
[1732111403574,0.10711512,94209.0,94199.0,0.01963496]
[1732111403794,0.10711512,94209.0,94200.0,0.01963496]
[1732111404011,0.10711512,94209.0,94201.0,0.01963496]
[1732111404222,0.10711512,94209.0,94202.0,0.01963496]
[1732111404425,0.212302,94205.0,94203.0,0.01963496]
[1732111404633,0.106157,94200.0,94198.0,0.001716]
[1732111404853,0.106156,94201.0,94199.0,0.0196318]
[1732111405061,0.106155,94201.0,94200.0,0.0196318]
[1732111405278,0.106154,94203.0,94200.0,0.0196318]
[1732111405523,0.106154,94202.0,94201.0,0.0196318]
[1732111405751,0.21326912,94202.0,94201.0,0.0196318]
[1732111405985,0.96548012,94202.0,94201.0,0.01962986]
[1732111406203,0.96548012,94202.0,94198.0,0.001716]
[1732111406204,0.106158,94199.0,94198.0,0.001716]
[1732111406413,0.75317312,94199.0,94198.0,0.001716]
[1732111406680,0.75317312,94199.0,94198.0,0.02134758]
[1732111406947,0.80262588,94199.0,94198.0,0.001716]
[1732111407375,0.80117312,94199.0,94198.0,0.001716]
[1732111409006,0.5399,94199.0,94198.0,0.001716]
[1732111409273,0.646058,94199.0,94198.0,0.021364]
[1732111409506,0.5399,94199.0,94198.0,0.021364]
[1732111409981,0.5399,94200.0,94198.0,0.021364]
[1732111410213,0.64701512,94200.0,94198.0,0.001716]
[1732111410441,0.106158,94199.0,94198.0,0.001716]
[1732111410694,0.5399,94200.0,94198.0,0.001716]
[1732111410921,0.5399,94200.0,94199.0,0.063694]
[1732111411433,0.6165,94228.0,94202.0,0.086692]
[1732111411665,0.5399,94227.0,94216.0,0.063682]
[1732111411914,0.5399,94227.0,94220.0,0.06368]
[1732111411915,0.646027,94227.0,94220.0,0.06368]
[1732111412169,0.646027,94227.0,94201.0,0.00054724]
[1732111412170,0.10614,94215.0,94200.0,0.1]
[1732111412432,0.10711512,94214.0,94198.0,0.001716]
[1732111412662,0.0766,94228.0,94202.0,0.063692]
[1732111412663,0.106134,94220.0,94202.0,0.063692]
[1732111412905,0.106134,94220.0,94198.0,0.001716]
[1732111412906,0.64701512,94220.0,94219.0,0.063681]
[1732111413143,0.64701512,94220.0,94214.0,0.063684]
[1732111413406,0.64701512,94220.0,94198.0,0.001716]
[1732111413407,0.10711512,94219.0,94198.0,0.001716]
[1732111413639,0.212273,94218.0,94198.0,0.001716]
[1732111413920,0.212273,94218.0,94180.0,0.00054724]
[1732111413921,0.64807675,94217.0,94170.0,0.01]
[1732111414158,0.64807675,94217.0,94140.0,0.00014331]
[1732111414159,0.106162,94196.0,94188.0,0.074318]
[1732111414401,0.0816,94200.0,94175.0,0.097329]
[1732111414633,0.10721963,94199.0,94192.0,0.074316]
[1732111414863,0.00106163,94199.0,94194.0,0.074314]
[1732111415333,0.00106163,94199.0,94173.0,0.023]
[1732111415583,0.10616,94198.0,94191.0,0.074316]
[1732111415845,0.00106163,94197.0,94195.0,0.074313]
[1732111416085,0.00106163,94199.0,94196.0,0.074313]
[1732111416363,0.22244705,94200.0,94193.0,0.074315]
[1732111416595,0.22244705,94200.0,94145.0,0.18857586]
[1732111416596,0.00106163,94199.0,94163.0,0.01]
[1732111416872,0.00106163,94199.0,94173.0,0.03423148]
[1732111416873,0.10711512,94198.0,94173.0,0.03423148]
[1732111417145,0.10711512,94198.0,94180.0,0.074325]
[1732111417146,0.00106163,94197.0,94180.0,0.074325]
[1732111417405,0.10711512,94196.0,94178.0,0.074327]
[1732111417649,0.106174,94185.0,94178.0,0.074327]
[1732111417887,0.106174,94185.0,94172.0,0.1017174]
[1732111417888,0.00106163,94184.0,94172.0,0.1017174]
[1732111418146,0.5419,94199.0,94180.0,0.074325]
[1732111418147,0.00106163,94186.0,94180.0,0.074325]
[1732111418410,0.54096163,94193.0,94172.0,0.0017174]
[1732111418657,0.64701512,94198.0,94188.0,0.074318]
[1732111418878,0.64701512,94198.0,94185.0,0.074321]
[1732111418879,0.00106163,94197.0,94190.0,0.074317]
[1732111419094,0.10711512,94196.0,94194.0,0.074313]
[1732111419303,0.5399,94199.0,94198.0,0.074311]
[1732111419508,0.11533193,94200.0,94199.0,0.07431]
[1732111419719,0.03373193,94200.0,94199.0,0.07431]
[1732111420177,0.03373193,94200.0,94180.0,0.074325]
[1732111420178,0.00106163,94209.0,94174.0,0.023]
[1732111420384,0.10711512,94208.0,94198.0,0.074311]
[1732111420594,0.10711512,94208.0,94175.0,0.10711512]
[1732111420595,0.10721063,94207.0,94201.0,0.074308]
[1732111420855,0.10721063,94207.0,94180.0,0.074325]
[1732111420856,0.10711512,94206.0,94180.0,0.074325]
[1732111421143,0.00106163,94205.0,94204.0,0.074306]
[1732111421397,0.10711512,94206.0,94205.0,0.074306]
[1732111421636,0.00106163,94209.0,94208.0,0.074303]
[1732111421885,0.54096163,94209.0,94208.0,0.074303]
[1732111422133,0.5399,94209.0,94208.0,0.074303]
[1732111422366,0.03415047,94210.0,94209.0,0.074302]
[1732111422632,0.0769,94212.0,94209.0,0.069302]
[1732111422883,0.5399,94216.0,94209.0,0.069302]
[1732111423118,0.5399,94216.0,94196.0,0.074312]
[1732111423119,0.03454324,94212.0,94211.0,0.074301]
[1732111423345,0.00106163,94215.0,94209.0,0.074302]
[1732111423579,0.00106163,94215.0,94212.0,0.0743]
[1732111424528,0.64701512,94216.0,94214.0,0.074298]
[1732111424752,0.64701512,94216.0,94215.0,0.074298]
[1732111425248,0.6815061,94216.0,94200.0,0.03453576]
[1732111425475,0.6815061,94216.0,94215.0,0.074298]
[1732111426999,0.03449098,94216.0,94215.0,0.074298]
[1732111427461,0.5399,94222.0,94200.0,0.074309]
[1732111427462,0.57398456,94222.0,94221.0,0.074293]
[1732111427721,0.03408456,94222.0,94221.0,0.074293]
[1732111428238,0.5399,94266.0,94228.0,0.023]
[1732111428517,0.0787,94267.0,94228.0,0.023]
[1732111428518,0.10817675,94261.0,94256.0,0.074265]
[1732111428769,0.10817675,94261.0,94260.0,0.074262]
[1732111428770,0.64549275,94261.0,94260.0,0.074262]
[1732111429008,0.64443112,94261.0,94260.0,0.074262]
[1732111429256,0.64443112,94261.0,94249.0,0.148542]
[1732111429488,0.64443112,94261.0,94232.0,0.074284]
[1732111429489,0.00106163,94260.0,94232.0,0.074284]
[1732111429733,0.00106163,94260.0,94256.0,0.074265]
[1732111429734,0.64443112,94259.0,94256.0,0.074265]